bitfinex/quotes_BTCUSD_20241023
["timestamp","ask_amount","ask_price","bid_price","bid_amount"]
[1729670536703,0.19991147,66853.0,66852.0,7.773e-05]
[1729670536932,0.00454647,66853.0,66852.0,7.773e-05]
[1729670537154,0.00454647,66853.0,66852.0,0.32179753]
[1729670537155,0.001648,66853.0,66852.0,0.32179753]
[1729670537634,0.001648,66853.0,66852.0,0.26870388]
[1729670538721,0.001648,66853.0,66852.0,7.773e-05]
[1729670538722,0.12396217,66853.0,66852.0,7.773e-05]
[1729670538897,0.20081147,66853.0,66852.0,7.773e-05]
[1729670539326,0.21476461,66853.0,66852.0,7.773e-05]
[1729670539757,0.21976461,66853.0,66852.0,7.773e-05]
[1729670541457,0.34941283,66853.0,66852.0,7.773e-05]
[1729670541672,0.32708781,66853.0,66852.0,7.773e-05]
[1729670542304,0.23881147,66853.0,66852.0,7.773e-05]
[1729670543011,0.22881147,66853.0,66852.0,7.773e-05]
[1729670543263,0.27334136,66853.0,66852.0,7.773e-05]
[1729670543483,0.26834136,66853.0,66852.0,7.773e-05]
[1729670543716,0.27334136,66853.0,66852.0,7.773e-05]
[1729670544389,0.30961006,66853.0,66852.0,7.773e-05]
[1729670544830,0.27334136,66853.0,66852.0,7.773e-05]
[1729670545074,0.25034136,66853.0,66852.0,7.773e-05]
[1729670545330,0.20081147,66853.0,66852.0,7.773e-05]
[1729670545807,0.20581147,66853.0,66852.0,7.773e-05]
[1729670546454,0.2420874,66853.0,66852.0,7.773e-05]
[1729670549032,0.2420876,66853.0,66852.0,7.773e-05]
[1729670550837,0.28670935,66853.0,66852.0,7.773e-05]
[1729670551528,0.28170935,66853.0,66852.0,7.773e-05]
[1729670552188,0.28670935,66853.0,66852.0,7.773e-05]
[1729670552400,0.2420876,66853.0,66852.0,7.773e-05]
[1729670552614,0.28172769,66853.0,66852.0,7.773e-05]
[1729670553057,0.28672769,66853.0,66852.0,7.773e-05]
[1729670555085,0.2420876,66853.0,66852.0,7.773e-05]
[1729670556013,0.28672769,66853.0,66852.0,7.773e-05]
[1729670556252,0.28674904,66853.0,66852.0,7.773e-05]
[1729670557134,0.28677678,66853.0,66852.0,7.773e-05]
[1729670559278,0.24210895,66853.0,66852.0,7.773e-05]
[1729670561139,0.37271682,66853.0,66852.0,7.773e-05]
[1729670561369,0.44002051,66853.0,66852.0,7.773e-05]
[1729670561574,0.53412051,66853.0,66852.0,7.773e-05]
[1729670562317,0.53612051,66853.0,66852.0,7.773e-05]
[1729670562550,0.53412051,66853.0,66852.0,7.773e-05]
[1729670562996,0.64678218,66853.0,66852.0,7.773e-05]
[1729670563228,0.83406897,66853.0,66852.0,7.773e-05]
[1729670563662,0.83206897,66853.0,66852.0,7.773e-05]
[1729670564539,0.83406897,66853.0,66852.0,7.773e-05]
[1729670564764,0.83206897,66853.0,66852.0,7.773e-05]
[1729670565191,0.83406897,66853.0,66852.0,7.773e-05]
[1729670566123,0.83206897,66853.0,66852.0,7.773e-05]
[1729670566333,0.83209585,66853.0,66852.0,7.773e-05]
[1729670566548,0.83409585,66853.0,66852.0,7.773e-05]
[1729670567204,0.83209585,66853.0,66852.0,7.773e-05]
[1729670570129,0.79576821,66853.0,66852.0,7.773e-05]
[1729670570315,0.83207794,66853.0,66852.0,7.773e-05]
[1729670570948,0.83200587,66853.0,66852.0,7.773e-05]
[1729670571596,0.83400587,66853.0,66852.0,7.773e-05]
[1729670572025,0.83200587,66853.0,66852.0,7.773e-05]
[1729670573802,0.8319956,66853.0,66852.0,7.773e-05]
[1729670574695,0.8339956,66853.0,66852.0,7.773e-05]
[1729670575582,0.83399209,66853.0,66852.0,7.773e-05]
[1729670575800,0.83394999,66853.0,66852.0,7.773e-05]
[1729670577362,0.83194999,66853.0,66852.0,7.773e-05]
[1729670577816,0.83195064,66853.0,66852.0,7.773e-05]
[1729670578680,0.83198884,66853.0,66852.0,7.773e-05]
[1729670579124,0.83398884,66853.0,66852.0,7.773e-05]
[1729670579337,0.83198884,66853.0,66852.0,7.773e-05]
[1729670580493,1.15417593,66853.0,66852.0,7.773e-05]
[1729670580708,1.04207859,66853.0,66852.0,7.773e-05]
[1729670581161,0.44257481,66845.0,66844.0,0.00062204]
[1729670581409,0.79268544,66845.0,66844.0,0.00062204]
[1729670581599,0.90431189,66845.0,66844.0,0.00062204]
[1729670582251,0.79268544,66845.0,66844.0,0.00062204]
[1729670582482,0.89268544,66845.0,66844.0,0.00062204]
[1729670582717,0.98131734,66845.0,66844.0,0.00062204]
[1729670583377,5.92122,66845.0,66844.0,0.00062204]
[1729670583593,6.15370197,66845.0,66844.0,0.00062204]
[1729670584345,6.32584117,66845.0,66844.0,0.00062204]
[1729670586989,6.28954457,66845.0,66844.0,0.00062204]
[1729670587198,6.30348567,66845.0,66844.0,0.00062204]
[1729670587403,6.32578286,66845.0,66844.0,0.00062204]
[1729670587652,6.33971974,66845.0,66844.0,0.00062204]
[1729670587914,6.24286907,66845.0,66844.0,0.00062204]
[1729670588156,6.33951818,66845.0,66844.0,0.00062204]
[1729670588396,6.47320044,66845.0,66844.0,0.00062204]
[1729670588630,6.33947068,66845.0,66844.0,0.00062204]
[1729670589341,0.01989847,66841.0,66834.0,0.000824]
[1729670589568,6.19602188,66841.0,66834.0,0.000824]
[1729670589834,0.23959547,66835.0,66834.0,0.000824]
[1729670590071,6.0099558,66835.0,66834.0,0.000824]
[1729670590285,6.15891495,66835.0,66834.0,0.000824]
[1729670590730,6.15889046,66835.0,66834.0,0.000824]
[1729670590979,6.15689046,66835.0,66834.0,0.000824]
[1729670591163,6.15889046,66835.0,66834.0,0.000824]
[1729670592904,6.15689046,66835.0,66834.0,0.000824]
[1729670593108,6.15889046,66835.0,66834.0,0.000824]
[1729670593557,6.17280937,66835.0,66834.0,0.000824]
[1729670594169,6.28403981,66835.0,66834.0,0.000824]
[1729670594412,6.28399584,66835.0,66834.0,0.000824]
[1729670596110,6.28199584,66835.0,66834.0,0.000824]
[1729670596336,6.17647782,66835.0,66834.0,0.000824]
[1729670596829,6.26543065,66835.0,66834.0,0.000824]
[1729670597049,6.17647782,66835.0,66834.0,0.000824]
[1729670597282,6.26543465,66835.0,66834.0,0.000824]
[1729670597475,6.26487667,66835.0,66834.0,0.000824]
[1729670597921,6.2509492,66835.0,66834.0,0.000824]
[1729670598156,6.26485738,66835.0,66834.0,0.000824]
[1729670598358,6.26685733,66835.0,66834.0,0.000824]
[1729670598781,6.26485733,66835.0,66834.0,0.000824]
[1729670599012,6.28709459,66835.0,66834.0,0.000824]
[1729670599284,0.13961547,66824.0,66823.0,0.000824]
[1729670599525,0.13961547,66824.0,66814.0,0.000824]
[1729670599526,0.51346867,66816.0,66814.0,0.000824]
[1729670599740,6.095728,66816.0,66814.0,0.000824]
[1729670600162,6.08533826,66816.0,66814.0,0.000824]
[1729670600396,3.72229741,66816.0,66814.0,0.000824]
[1729670600638,3.68019327,66816.0,66814.0,0.000824]
[1729670600863,3.76904773,66816.0,66814.0,0.000824]
[1729670601078,3.72429741,66816.0,66814.0,0.000824]
[1729670601292,6.14721011,66816.0,66814.0,0.000824]
[1729670601714,6.02801976,66816.0,66814.0,0.000824]
[1729670602140,6.1472061,66816.0,66814.0,0.000824]
[1729670602349,6.04985932,66816.0,66814.0,0.000824]
[1729670602772,6.01369643,66816.0,66814.0,0.000824]
[1729670602977,6.14287655,66816.0,66814.0,0.000824]
[1729670603192,6.07628667,66816.0,66814.0,0.000824]
[1729670604037,6.14287655,66816.0,66814.0,0.000824]
[1729670604275,6.07628667,66816.0,66814.0,0.000824]
[1729670605340,6.09843771,66816.0,66814.0,0.000824]
[1729670605559,6.12063179,66816.0,66814.0,0.000824]
[1729670606624,6.12062995,66816.0,66814.0,0.000824]
[1729670608203,6.07627193,66816.0,66814.0,0.000824]
[1729670609278,0.5947932,66816.0,66814.0,0.000824]
[1729670609728,0.68051278,66816.0,66814.0,0.000824]
[1729670610850,0.70351278,66816.0,66814.0,0.000824]
[1729670612976,0.6177932,66816.0,66814.0,0.000824]
[1729670616576,0.445654,66816.0,66814.0,0.000824]
[1729670616783,0.5777365,66816.0,66814.0,0.000824]
[1729670618652,0.7498757,66816.0,66814.0,0.000824]
[1729670619462,0.7516264,66816.0,66814.0,0.000824]
[1729670620129,0.7496264,66816.0,66814.0,0.000824]
[1729670620375,0.68769821,66816.0,66814.0,0.000824]
[1729670622554,0.26238717,66812.0,66811.0,0.000846]
[1729670622785,5.79503372,66812.0,66811.0,0.000846]
[1729670623026,5.80789055,66812.0,66811.0,0.000846]
[1729670624414,5.90533918,66812.0,66811.0,0.000846]
[1729670624906,5.90533923,66812.0,66811.0,0.000846]
[1729670625158,5.90533923,66812.0,66800.0,1.080946]
[1729670625159,0.007,66805.0,66800.0,1.080946]
[1729670625445,0.43650717,66801.0,66800.0,0.93594436]
[1729670625720,0.43650717,66801.0,66783.0,0.000847]
[1729670625721,0.43651817,66795.0,66783.0,0.000847]
[1729670626017,0.31963417,66786.0,66783.0,0.000847]
[1729670626514,0.35200205,66786.0,66783.0,0.000847]
[1729670626517,0.35200205,66786.0,66782.0,0.20884986]
[1729670626518,0.04264917,66783.0,66782.0,0.11285375]
[1729670626748,0.04264917,66783.0,66777.0,0.000847]
[1729670626749,0.23944817,66778.0,66777.0,0.000847]
[1729670627015,0.13947217,66765.0,66764.0,0.00572426]
[1729670627339,5.48617217,66765.0,66764.0,0.00554426]
[1729670627582,5.48617217,66765.0,66744.0,0.06084699]
[1729670627583,0.01964917,66759.0,66744.0,0.06084699]
[1729670627800,0.1932,66764.0,66750.0,0.03329213]
[1729670627801,0.26049717,66751.0,66750.0,0.03329213]
[1729670628065,0.13450817,66745.0,66744.0,0.05084699]
[1729670628334,0.13450817,66745.0,66734.0,0.05999999]
[1729670628335,0.00764917,66735.0,66734.0,0.05999999]
[1729670628623,0.15910979,66735.0,66734.0,0.05999999]
[1729670628995,0.12593258,66735.0,66734.0,0.05999999]
[1729670629236,0.12593258,66735.0,66734.0,0.06199999]
[1729670629468,0.10367713,66735.0,66734.0,0.23743393]
[1729670629686,0.00367713,66735.0,66734.0,0.0649308]
[1729670629925,0.02225545,66735.0,66734.0,0.05999999]
[1729670630397,0.02225545,66735.0,66734.0,0.0649308]
[1729670631097,0.02225545,66735.0,66734.0,0.1848088]
[1729670631773,0.02225545,66735.0,66734.0,0.1828088]
[1729670631973,0.02305934,66748.0,66736.0,0.002]
[1729670631974,0.19475858,66747.0,66736.0,0.002]
[1729670632174,0.19475858,66747.0,66734.0,0.05999999]
[1729670632175,0.005,66745.0,66734.0,0.05999999]
[1729670632357,0.119866,66742.0,66734.0,0.05999999]
[1729670632568,0.005,66745.0,66734.0,0.05999999]
[1729670632569,0.02210597,66741.0,66734.0,0.05999999]
[1729670632880,0.124877,66735.0,66734.0,0.05999999]
[1729670633047,0.119877,66735.0,66734.0,0.05999999]
[1729670633250,0.12925006,66735.0,66734.0,0.05999999]
[1729670633460,0.03144264,66735.0,66734.0,0.05999999]
[1729670633891,0.02206958,66735.0,66734.0,0.05999999]
[1729670634101,0.02206958,66735.0,66734.0,0.06199999]
[1729670634925,0.02206958,66738.0,66734.0,0.05999999]
[1729670635162,0.02206958,66737.0,66734.0,0.05999999]
[1729670635389,0.14194458,66736.0,66735.0,0.002]
[1729670635601,0.02206958,66736.0,66734.0,0.05999999]
[1729670635815,0.02206958,66741.0,66734.0,0.05999999]
[1729670636018,0.005,66742.0,66738.0,0.002]
[1729670636019,0.119869,66739.0,66738.0,0.002]
[1729670636224,0.119869,66739.0,66734.0,0.05999999]
[1729670636225,0.124877,66735.0,66734.0,0.05999999]
[1729670636430,0.14694658,66735.0,66734.0,0.05999999]
[1729670636885,0.124877,66735.0,66734.0,0.05999999]
[1729670637497,0.27383615,66735.0,66734.0,0.05999999]
[1729670637699,0.34107031,66735.0,66734.0,0.05999999]
[1729670637902,0.51357344,66735.0,66734.0,0.05999999]
[1729670638121,0.54657344,66735.0,66734.0,0.05999999]
[1729670638991,0.57964051,66735.0,66734.0,0.05999999]
[1729670639443,0.52178031,66735.0,66734.0,0.05999999]
[1729670639674,0.5123229,66735.0,66734.0,0.05999999]
[1729670639882,0.58490313,66735.0,66734.0,0.05999999]
[1729670640096,0.55192411,66735.0,66734.0,0.05999999]
[1729670640303,0.41240031,66735.0,66734.0,0.05999999]
[1729670640558,0.23735017,66735.0,66734.0,0.06199999]
[1729670640768,0.21944805,66735.0,66734.0,0.06199999]
[1729670640980,0.15623784,66735.0,66734.0,0.05999999]
[1729670641189,0.20095832,66735.0,66734.0,0.06082499]
[1729670641411,0.40114146,66735.0,66734.0,0.06082499]
[1729670641638,0.42862148,66735.0,66734.0,0.06082499]
[1729670642097,0.42861942,66735.0,66734.0,0.06082499]
[1729670642315,0.21993979,66735.0,66734.0,0.06082499]
[1729670642760,0.0588388,66735.0,66734.0,0.06082499]
[1729670642971,0.16497563,66735.0,66734.0,0.06082499]
[1729670644294,0.31893478,66735.0,66734.0,0.06082499]
[1729670644472,0.51789401,66735.0,66734.0,0.06082499]
[1729670644660,0.67704354,66735.0,66734.0,0.06082499]
[1729670645090,0.69463652,66735.0,66734.0,0.02707443]
[1729670645293,0.55747431,66735.0,66734.0,0.02707443]
[1729670645582,0.53990651,66735.0,66734.0,0.02707443]
[1729670645737,0.55750253,66735.0,66734.0,0.02707443]
[1729670645954,0.5575025,66735.0,66734.0,0.02707443]
[1729670647254,0.5804164,66735.0,66734.0,0.02707443]
[1729670647681,0.39845725,66735.0,66734.0,0.02707443]
[1729670647907,0.47668957,66735.0,66734.0,0.02707443]
[1729670648139,0.51791356,66735.0,66734.0,0.02707443]
[1729670648362,0.53990651,66735.0,66734.0,0.02707443]
[1729670648993,0.5399599,66735.0,66734.0,0.02707443]
[1729670649254,0.50671258,66735.0,66734.0,0.02707443]
[1729670649463,0.53992231,66735.0,66734.0,0.02707443]
[1729670649673,0.51700841,66735.0,66734.0,0.02707443]
[1729670649880,0.53352119,66735.0,66734.0,0.02707443]
[1729670650296,0.53352119,66735.0,66724.0,0.05999999]
[1729670650297,0.257895,66725.0,66724.0,0.05999999]
[1729670650523,0.6493126,66725.0,66724.0,0.05999999]
[1729670650727,0.55765828,66725.0,66724.0,0.05999999]
[1729670650935,0.5565538,66725.0,66724.0,0.05999999]
[1729670651355,0.59777779,66725.0,66724.0,0.05999999]
[1729670651563,0.55765828,66725.0,66724.0,0.05999999]
[1729670651779,0.51803346,66725.0,66724.0,0.05999999]
[1729670652285,0.50438972,66725.0,66724.0,0.05999999]
[1729670652488,0.49718336,66725.0,66724.0,0.05999999]
[1729670652698,0.51823399,66725.0,66724.0,0.05999999]
[1729670653332,0.53591501,66725.0,66724.0,0.05999999]
[1729670653978,0.52591501,66725.0,66724.0,0.05999999]
[1729670654163,0.53591501,66725.0,66724.0,0.05999999]
[1729670654388,0.52591501,66725.0,66724.0,0.05999999]
[1729670654812,0.53591501,66725.0,66724.0,0.05999999]
[1729670655028,0.60848501,66725.0,66724.0,0.05999999]
[1729670655259,0.61348501,66725.0,66724.0,0.05999999]
[1729670657675,0.53591501,66725.0,66724.0,0.05999999]
[1729670659238,0.49069839,66725.0,66724.0,0.05999999]
[1729670659435,0.53618486,66725.0,66724.0,0.05999999]
[1729670659694,0.4935622,66725.0,66724.0,0.05999999]
[1729670659903,0.51855967,66725.0,66724.0,0.05999999]
[1729670660108,0.63562245,66725.0,66724.0,0.05999999]
[1729670660355,0.11170552,66725.0,66724.0,0.05999999]
[1729670660573,0.12948149,66725.0,66724.0,0.06199999]
[1729670660797,0.12948149,66725.0,66724.0,0.1848268]
[1729670661014,0.12948149,66725.0,66724.0,0.0649308]
[1729670661418,0.12948149,66725.0,66724.0,0.1848268]
[1729670661630,0.12948149,66725.0,66724.0,0.2626268]
[1729670661861,0.22412479,66738.0,66724.0,0.2626268]
[1729670661862,0.22412479,66738.0,66737.0,0.121873]
[1729670662147,0.24637587,66738.0,66737.0,0.12480381]
[1729670662519,0.24637587,66738.0,66737.0,0.002]
[1729670662753,0.24637587,66738.0,66737.0,0.00293081]
[1729670663189,0.02225108,66738.0,66737.0,0.00293081]
[1729670663414,0.119866,66741.0,66739.0,0.002]
[1729670663616,0.119866,66741.0,66737.0,0.00293081]
[1729670663617,0.22412479,66746.0,66743.0,0.002]
[1729670663825,0.119866,66741.0,66740.0,0.002]
[1729670664030,0.119878,66734.0,66733.0,0.002]
[1729670664232,0.239725,66743.0,66739.0,0.002]
[1729670664451,0.239725,66743.0,66736.0,0.002]
[1729670664452,0.119871,66739.0,66736.0,0.002]
[1729670664663,0.239729,66742.0,66736.0,0.002]
[1729670664664,0.119872,66738.0,66736.0,0.002]
[1729670665064,0.119873,66737.0,66736.0,0.002]
[1729670665291,0.22412479,66746.0,66736.0,0.002]
[1729670665525,0.22412479,66746.0,66733.0,0.002]
[1729670665526,0.119877,66735.0,66733.0,0.002]
[1729670665752,0.119884,66731.0,66729.0,0.002]
[1729670665985,0.239743,66738.0,66729.0,0.002]
[1729670666211,0.119883,66732.0,66729.0,0.002]
[1729670666400,0.23975,66736.0,66729.0,0.002]
[1729670666608,0.119886,66730.0,66729.0,0.002]
[1729670666819,0.119884,66732.0,66729.0,0.002]
[1729670667266,0.119885,66731.0,66727.0,0.002]
[1729670667505,0.119881,66733.0,66727.0,0.002]
[1729670667713,0.34399979,66736.0,66731.0,0.00293081]
[1729670668130,0.22412479,66736.0,66731.0,0.00293081]
[1729670668347,0.00165,66741.0,66740.0,0.002]
[1729670668544,0.00165,66741.0,66736.0,0.00493081]
[1729670668767,0.119873,66737.0,66736.0,0.00293081]
[1729670669005,0.241384,66741.0,66733.0,0.002]
[1729670669229,0.00165,66741.0,66733.0,0.002]
[1729670669436,0.119873,66738.0,66733.0,0.002]
[1729670669643,0.00165,66741.0,66733.0,0.002]
[1729670669870,0.119875,66736.0,66733.0,0.002]
[1729670670096,0.121516,66741.0,66740.0,0.002]
[1729670671203,0.121516,66741.0,66731.0,0.00493081]
[1729670671204,0.11988,66734.0,66731.0,0.00493081]
[1729670671448,0.239753,66736.0,66731.0,0.00493081]
[1729670671449,0.119876,66736.0,66731.0,0.00493081]
[1729670671677,0.119876,66736.0,66735.0,0.002]
[1729670672113,0.14212167,66736.0,66735.0,0.002]
[1729670672328,0.02224567,66736.0,66735.0,0.002]
[1729670672570,0.02224567,66736.0,66724.0,0.47729412]
[1729670672571,0.119895,66725.0,66724.0,0.05999999]
[1729670672806,0.14214067,66725.0,66724.0,0.05999999]
[1729670673964,0.1671556,66725.0,66724.0,0.05999999]
[1729670675385,0.0472606,66725.0,66724.0,0.05999999]
[1729670675626,0.0472606,66725.0,66724.0,0.06199999]
[1729670677783,0.0472606,66725.0,66724.0,0.0649308]
[1729670678015,0.03614281,66725.0,66724.0,0.0649308]
[1729670678248,0.03614281,66725.0,66724.0,0.46300974]
[1729670678481,0.03614281,66725.0,66724.0,0.31893393]
[1729670678744,0.03614281,66725.0,66724.0,0.1464308]
[1729670678979,0.03614281,66725.0,66724.0,0.2671518]
[1729670679221,0.03614281,66725.0,66724.0,0.43965493]
[1729670680133,0.03614281,66725.0,66724.0,0.58861408]
[1729670680369,0.01389714,66725.0,66724.0,0.58861408]
[1729670681875,0.22412479,66732.0,66731.0,0.12481481]
[1729670682336,0.26025933,66732.0,66731.0,0.12481481]
[1729670682833,0.03613454,66732.0,66731.0,0.12481481]
[1729670683052,0.02501602,66732.0,66731.0,0.12481481]
[1729670683300,0.02501602,66732.0,66731.0,0.00493081]
[1729670683570,0.119892,66727.0,66726.0,0.00293081]
[1729670683816,0.119892,66727.0,66724.0,0.0657558]
[1729670683817,0.119895,66725.0,66724.0,0.0657558]
[1729670684062,0.1560302,66725.0,66724.0,0.0657558]
[1729670684296,0.01389815,66725.0,66724.0,0.0657558]
[1729670684521,0.13379315,66725.0,66724.0,0.0657558]
[1729670684747,0.0361352,66725.0,66724.0,0.0657558]
[1729670685234,0.13379315,66725.0,66724.0,0.0657558]
[1729670685462,0.0361352,66725.0,66724.0,0.0657558]
[1729670685693,0.01778905,66729.0,66725.0,0.00493081]
[1729670685694,0.02224253,66726.0,66725.0,0.00493081]
[1729670685925,0.02224253,66728.0,66726.0,0.002]
[1729670686149,0.01112128,66729.0,66726.0,0.002]
[1729670686150,0.01390217,66727.0,66726.0,0.002]
[1729670686375,0.01390217,66727.0,66726.0,0.00493081]
[1729670687535,0.01390217,66727.0,66726.0,0.12482381]
[1729670687763,0.01390217,66727.0,66726.0,0.00493081]
[1729670687990,0.01390217,66727.0,66726.0,0.12482381]
[1729670688214,0.01390217,66727.0,66726.0,0.00493081]
[1729670688436,0.01390217,66727.0,66726.0,0.12482381]
[1729670688662,0.01390217,66727.0,66726.0,0.00493081]
[1729670688888,0.01390217,66727.0,66726.0,0.12482381]
[1729670689608,0.22412479,66732.0,66731.0,0.00493081]
[1729670689834,0.27146136,66732.0,66731.0,0.12481481]
[1729670690268,0.04733657,66732.0,66731.0,0.12481481]
[1729670691171,0.01392252,66732.0,66731.0,0.20411481]
[1729670691588,0.01392252,66732.0,66731.0,0.44777396]
[1729670692008,0.00165,66734.0,66733.0,0.002]
[1729670692219,0.01558476,66734.0,66733.0,0.44627309]
[1729670692640,0.01558476,66734.0,66733.0,0.49364024]
[1729670692859,0.01558476,66734.0,66733.0,0.44627309]
[1729670692860,0.00165,66734.0,66733.0,0.44627309]
[1729670694695,0.01558011,66734.0,66733.0,0.44627309]
[1729670695314,0.01558011,66734.0,66733.0,0.00493081]
[1729670696385,0.01558011,66734.0,66733.0,0.12481081]
[1729670697881,0.00165,66734.0,66733.0,0.12481081]
[1729670698092,0.01557446,66734.0,66733.0,0.12481081]
[1729670698721,0.01557446,66734.0,66733.0,0.1869491]
[1729670699155,0.01557446,66734.0,66733.0,0.12481081]
[1729670699369,0.01557446,66734.0,66733.0,0.00493081]
[1729670700287,0.01557446,66734.0,66732.0,0.00493081]
[1729670700541,0.01557446,66734.0,66729.0,0.002]
[1729670700542,0.119886,66730.0,66729.0,0.002]
[1729670700776,0.13381046,66730.0,66729.0,0.002]
[1729670700987,0.13381046,66730.0,66727.0,0.00493081]
[1729670701195,0.02228148,66730.0,66729.0,0.002]
[1729670701411,0.01391733,66730.0,66729.0,0.002]
[1729670701890,0.01391733,66730.0,66729.0,0.00493081]
[1729670702068,0.01391733,66730.0,66729.0,0.12481781]
[1729670702283,0.01391733,66730.0,66729.0,0.00493081]
[1729670702495,0.01391733,66730.0,66729.0,0.30967435]
[1729670702932,0.00165,66734.0,66733.0,0.12481081]
[1729670703165,0.00165,66734.0,66733.0,0.44926988]
[1729670703166,0.01556766,66734.0,66733.0,0.44926988]
[1729670703403,0.00165,66734.0,66733.0,0.45127309]
[1729670703629,0.00165,66734.0,66733.0,0.55717374]
[1729670704320,0.00165,66734.0,66733.0,0.40321459]
[1729670704568,0.00165,66734.0,66733.0,0.17743394]
[1729670705212,0.00165,66734.0,66733.0,0.00493081]
[1729670705213,0.121528,66734.0,66733.0,0.00493081]
[1729670705470,0.121528,66734.0,66725.0,0.002826]
[1729670705471,0.00165,66734.0,66725.0,0.002826]
[1729670705691,0.00165,66734.0,66728.0,0.00293081]
[1729670705927,0.119887,66729.0,66728.0,0.00493081]
[1729670706658,0.13102315,66729.0,66728.0,0.00493081]
[1729670706909,0.01113615,66731.0,66730.0,0.002]
[1729670707564,0.119886,66730.0,66729.0,0.002]
[1729670707780,0.01113615,66730.0,66729.0,0.00493081]
[1729670708254,0.13102215,66730.0,66729.0,0.00493081]
[1729670708482,0.119883,66732.0,66730.0,0.002]
[1729670708695,0.119883,66732.0,66731.0,0.002]
[1729670708905,0.13102369,66732.0,66731.0,0.002]
[1729670709592,0.119884,66731.0,66730.0,0.00293081]
[1729670709825,0.13102469,66731.0,66730.0,0.00293081]
[1729670711573,0.13102469,66731.0,66725.0,0.000826]
[1729670711574,0.119893,66726.0,66725.0,0.000826]
[1729670711791,0.13103369,66726.0,66725.0,0.000826]
[1729670713342,0.13103369,66726.0,66725.0,0.002826]
[1729670713547,0.13103369,66726.0,66725.0,0.000826]
[1729670714237,0.24225958,66726.0,66725.0,0.000826]
[1729670714701,0.13103369,66726.0,66725.0,0.000826]
[1729670714943,0.119893,66726.0,66725.0,0.000826]
[1729670715201,0.13103277,66726.0,66725.0,0.000826]
[1729670715445,0.13103114,66726.0,66725.0,0.000826]
[1729670716632,0.20723114,66726.0,66725.0,0.000826]
[1729670716874,0.20722778,66726.0,66725.0,0.000826]
[1729670717585,0.119895,66725.0,66724.0,0.04165099]
[1729670717861,0.01113478,66725.0,66724.0,0.1644778]
[1729670718104,0.01782364,66728.0,66727.0,0.12282181]
[1729670718359,0.01782364,66728.0,66727.0,0.44628409]
[1729670719293,0.01782364,66728.0,66727.0,0.45128409]
[1729670720204,0.001652,66730.0,66729.0,0.12981781]
[1729670720422,0.001652,66730.0,66729.0,0.28877696]
[1729670720628,0.001652,66730.0,66729.0,0.42177866]
[1729670721731,0.001652,66730.0,66729.0,0.28877696]
[1729670721966,0.001652,66730.0,66729.0,0.27877696]
[1729670723132,0.001652,66730.0,66729.0,0.27377696]
[1729670723326,0.001652,66730.0,66729.0,0.27877696]
[1729670724199,0.001652,66730.0,66729.0,0.27377696]
[1729670724413,0.001652,66730.0,66729.0,0.27877696]
[1729670725297,0.001652,66730.0,66729.0,0.12981781]
[1729670726254,0.001652,66730.0,66729.0,0.12481781]
[1729670727744,0.001652,66730.0,66729.0,0.12981781]
[1729670728177,0.00165,66734.0,66733.0,0.002]
[1729670728409,0.00165,66734.0,66733.0,0.00493081]
[1729670730260,0.00165,66734.0,66733.0,0.12481081]
[1729670734618,0.00165,66734.0,66733.0,0.27376996]
[1729670734807,0.01113374,66738.0,66737.0,0.12480381]
[1729670735955,0.01113374,66738.0,66737.0,0.35825956]
[1729670736188,0.01113374,66738.0,66737.0,0.63776609]
[1729670736428,0.00165,66741.0,66737.0,0.63776609]
[1729670736429,0.00165,66741.0,66740.0,0.01793081]
[1729670736687,0.22412479,66753.0,66752.0,0.12477681]
[1729670736898,0.22412479,66753.0,66752.0,0.48318767]
[1729670737793,0.22412479,66753.0,66752.0,0.00493081]
[1729670738025,0.46378679,66761.0,66759.0,0.00293081]
[1729670738026,0.119832,66760.0,66759.0,0.00293081]
[1729670738238,0.22412479,66761.0,66759.0,0.00293081]
[1729670738239,0.34395579,66761.0,66759.0,0.00293081]
[1729670738696,0.22412479,66761.0,66759.0,0.00493081]
[1729670738898,0.005,66772.0,66759.0,0.00493081]
[1729670739133,0.119824,66765.0,66760.0,0.04171149]
[1729670739359,0.119826,66763.0,66759.0,0.00293081]
[1729670739577,0.22412479,66768.0,66759.0,0.00293081]
[1729670739803,0.22412479,66768.0,66762.0,0.00293081]
[1729670740022,0.34394179,66768.0,66767.0,0.002]
[1729670740242,0.119821,66766.0,66765.0,0.002]
[1729670741193,0.239632,66769.0,66765.0,0.002]
[1729670741464,0.005,66778.0,66776.0,0.002]
[1729670741465,0.239602,66778.0,66776.0,0.002]
[1729670741705,0.16162134,66783.0,66776.0,0.002]
[1729670741706,0.22412479,66777.0,66776.0,0.17250313]
[1729670741944,0.22412479,66777.0,66776.0,0.00493081]
[1729670742152,0.22412479,66777.0,66776.0,0.002]
[1729670742379,0.359385,66781.0,66780.0,0.002]
[1729670743125,0.239578,66784.0,66780.0,0.002]
[1729670743358,0.119783,66787.0,66786.0,0.002]
[1729670743581,0.22412479,66794.0,66788.0,0.002]
[1729670743582,0.46366679,66794.0,66788.0,0.002]
[1729670743814,0.119775,66792.0,66788.0,0.002]
[1729670744038,0.001696,66798.0,66785.0,0.17250313]
[1729670744039,0.001696,66798.0,66795.0,0.002]
[1729670744270,0.239535,66796.0,66791.0,0.00293081]
[1729670744505,0.119767,66796.0,66795.0,0.002]
[1729670744741,0.241227,66797.0,66792.0,0.00493081]
[1729670744742,0.119773,66793.0,66792.0,0.00493081]
[1729670745009,0.001696,66797.0,66789.0,0.002]
[1729670745229,0.119778,66790.0,66789.0,0.002]
[1729670745876,0.239538,66795.0,66789.0,0.002]
[1729670746101,0.001696,66797.0,66789.0,0.002]
[1729670746318,0.119772,66794.0,66789.0,0.02645068]
[1729670746535,0.121461,66797.0,66796.0,0.002]
[1729670747186,0.001696,66797.0,66796.0,0.002]
[1729670747408,0.001696,66797.0,66796.0,0.12469781]
[1729670749397,0.001696,66797.0,66796.0,0.2106368]
[1729670749624,0.001696,66797.0,66796.0,0.00493081]
[1729670749845,0.001696,66797.0,66796.0,0.12469781]
[1729670750087,0.001696,66797.0,66796.0,0.00493081]
[1729670750315,0.121461,66797.0,66796.0,0.00293081]
[1729670750774,0.121461,66797.0,66786.0,0.005]
[1729670750775,0.119767,66796.0,66795.0,0.00493081]
[1729670751229,0.119767,66796.0,66782.0,0.005]
[1729670751230,0.119769,66795.0,66794.0,0.00293081]
[1729670751669,0.001696,66797.0,66796.0,0.002]
[1729670751887,0.121461,66797.0,66796.0,0.002]
[1729670752371,0.001696,66797.0,66796.0,0.002]
[1729670752604,0.119767,66796.0,66795.0,0.00493081]
[1729670753303,0.119767,66796.0,66795.0,0.00293081]
[1729670753540,0.001696,66797.0,66795.0,0.00293081]